bitfinex-derivatives/quotes_BTCF0:USTF0_20251110
["timestamp","ask_amount","ask_price","bid_price","bid_amount"]
[1762790059911,0.62184372,104840.0,104830.0,0.04629803]
[1762790060108,0.1393954,104830.0,104820.0,0.003]
[1762790060414,0.1394045,104820.0,104810.0,0.00024019]
[1762790060606,0.5002045,104820.0,104810.0,0.00243822]
[1762790060801,0.53692428,104820.0,104810.0,0.09787182]
[1762790061009,0.63234878,104820.0,104810.0,0.09787182]
[1762790061400,0.63234878,104820.0,104810.0,0.00243822]
[1762790061605,0.63234878,104820.0,104810.0,0.09787182]
[1762790061807,0.4175,104820.0,104810.0,0.11001489]
[1762790062009,0.61961968,104830.0,104820.0,0.04544]
[1762790062207,0.61961968,104830.0,104820.0,0.04763803]
[1762790062612,0.5001954,104830.0,104820.0,0.14306253]
[1762790062815,0.61961968,104830.0,104820.0,0.12028253]
[1762790063518,0.52420428,104830.0,104820.0,0.12028253]
[1762790063710,0.40478,104830.0,104820.0,0.14306253]
[1762790064316,0.52420428,104830.0,104820.0,0.14606253]
[1762790064514,0.61961968,104830.0,104820.0,0.00519803]
[1762790066218,0.1471545,104820.0,104810.0,0.01238326]
[1762790066514,0.62737878,104820.0,104810.0,0.00243822]
[1762790067016,0.53195428,104820.0,104810.0,0.12053182]
[1762790067207,0.41253,104820.0,104810.0,0.12053182]
[1762790067408,0.40578,104820.0,104810.0,0.14731182]
[1762790068006,0.001,104820.0,104810.0,0.50811182]
[1762790068812,0.37366314,104840.0,104830.0,0.0954154]
[1762790069013,0.50032944,104840.0,104830.0,0.14305343]
[1762790069210,0.40492314,104840.0,104830.0,0.14305343]
[1762790069720,0.50032944,104840.0,104830.0,0.14305343]
[1762790070015,0.50032944,104840.0,104830.0,0.14405343]
[1762790070214,0.61975372,104840.0,104830.0,0.14405343]
[1762790070410,0.62750372,104840.0,104830.0,0.04863803]
[1762790070614,0.62750372,104840.0,104830.0,0.00319803]
[1762790070812,0.53209742,104840.0,104830.0,0.09861343]
[1762790071018,0.40492314,104840.0,104830.0,0.14405343]
[1762790071318,0.62750372,104840.0,104830.0,0.00319803]
[1762790071710,0.62750372,104840.0,104830.0,0.09861343]
[1762790072210,0.53209742,104840.0,104830.0,0.14405343]
[1762790072416,0.62750372,104840.0,104830.0,0.00319803]
[1762790072613,0.50807944,104840.0,104830.0,0.09861343]
[1762790072817,0.62750372,104840.0,104830.0,0.00319803]
[1762790074220,0.40492314,104840.0,104830.0,0.14405343]
[1762790074416,0.3608,104860.0,104850.0,0.0953972]
[1762790074713,0.61958328,104870.0,104860.0,0.04544]
[1762790074914,0.52420428,104870.0,104860.0,0.14302613]
[1762790075308,0.04398,104870.0,104860.0,0.15607613]
[1762790075614,0.02149,104870.0,104860.0,0.15607613]
[1762790076015,0.04398,104870.0,104860.0,0.15607613]
[1762790076217,0.41865314,104880.0,104870.0,0.140819]
[1762790076512,0.53807742,104880.0,104870.0,0.09757703]
[1762790076917,0.53807742,104880.0,104870.0,0.14301703]
[1762790076918,0.41865314,104880.0,104870.0,0.14301703]
[1762790077112,0.40492314,104880.0,104870.0,0.14301703]
[1762790077318,0.41764314,104880.0,104870.0,0.09757703]
[1762790077504,0.59279057,104880.0,104870.0,0.09757703]
[1762790077711,0.59679057,104880.0,104870.0,0.09857703]
[1762790077910,0.69216047,104880.0,104870.0,0.00319803]
[1762790078512,0.59679057,104880.0,104870.0,0.09857703]
[1762790078707,0.59679057,104880.0,104870.0,0.14401703]
[1762790078708,0.40892314,104880.0,104870.0,0.14401703]
[1762790079110,0.04812314,104880.0,104870.0,0.14401703]
[1762790079317,0.00414314,104880.0,104870.0,0.14401703]
[1762790079512,0.04812314,104880.0,104870.0,0.14401703]
[1762790079820,0.00414314,104880.0,104870.0,0.50481703]
[1762790080013,0.02563314,104880.0,104870.0,0.50481703]
[1762790080215,0.00414314,104880.0,104870.0,0.50481703]
[1762790080816,0.00414314,104880.0,104870.0,0.74317703]
[1762790081016,0.40478,104910.0,104900.0,0.1407917]
[1762790081215,0.40478,104910.0,104900.0,0.14298973]
[1762790082017,0.04398,104910.0,104900.0,0.14298973]
[1762790082218,0.04398,104910.0,104900.0,0.16840461]
[1762790082819,0.1393227,104910.0,104900.0,0.06000291]
[1762790083019,0.04398,104910.0,104900.0,0.15535471]
[1762790083214,0.04398,104910.0,104900.0,0.15635471]
[1762790083423,0.1393227,104910.0,104900.0,0.15635471]
[1762790083921,0.67527013,104910.0,104900.0,0.01556291]
[1762790086225,0.67527013,104910.0,104900.0,0.01456291]
[1762790086624,0.1520518,104900.0,104890.0,0.108033]
[1762790086924,0.4175,104900.0,104890.0,0.11023103]
[1762790087227,0.5128518,104900.0,104890.0,0.11023103]
[1762790087430,0.5128518,104900.0,104890.0,0.01487013]
[1762790087721,0.4175,104900.0,104890.0,0.15567103]
[1762790087926,0.40478,104910.0,104900.0,0.1407917]
[1762790088130,0.40478,104910.0,104900.0,0.14298973]
[1762790088918,0.04398,104910.0,104900.0,0.15603973]
[1762790089622,0.51485674,104920.0,104910.0,0.0232]
[1762790089824,0.69000417,104920.0,104910.0,0.02539803]
[1762790090019,0.69000417,104920.0,104910.0,0.00219803]
[1762790091425,0.59567057,104920.0,104910.0,0.09754073]
[1762790091626,0.51585674,104920.0,104910.0,0.14373073]
[1762790092125,0.42052314,104920.0,104910.0,0.14373073]
[1762790092334,0.00114314,104920.0,104910.0,0.14373073]
[1762790092628,0.05972314,104920.0,104910.0,0.14373073]
[1762790093328,0.04710314,104920.0,104910.0,0.14373073]
[1762790093532,0.00014314,104920.0,104910.0,0.14373073]
[1762790093737,0.04610314,104920.0,104910.0,0.14373073]
[1762790094437,0.02319314,104920.0,104910.0,0.14373073]
[1762790094739,0.00014314,104920.0,104910.0,0.41419341]
[1762790094940,0.00014314,104920.0,104910.0,0.65247341]
[1762790095124,0.04235314,104920.0,104910.0,0.14373073]
[1762790095530,0.40315314,104920.0,104910.0,0.14373073]
[1762790095732,0.04235314,104920.0,104910.0,0.14373073]
[1762790098241,0.49848674,104920.0,104910.0,0.04838803]
[1762790098741,0.49848674,104920.0,104910.0,0.14373073]
[1762790098945,0.40315314,104920.0,104910.0,0.14373073]
[1762790100333,0.68629417,104920.0,104910.0,0.00219803]
[1762790100533,0.05487,104900.0,104890.0,0.1080329]
[1762790100747,0.04221,104900.0,104890.0,0.15422093]
[1762790101041,0.04221,104900.0,104860.0,0.587663]
[1762790101042,0.04221,104870.0,104860.0,0.587663]
[1762790101237,0.67353643,104870.0,104860.0,0.07663613]
[1762790101441,0.67353643,104870.0,104840.0,0.1393903]
[1762790101442,0.04221,104850.0,104840.0,0.1393903]
[1762790101640,0.57815743,104850.0,104840.0,0.01436147]
[1762790102944,0.57815743,104850.0,104840.0,0.10976777]
[1762790103145,0.40301,104850.0,104840.0,0.16677777]
[1762790103346,0.54875057,104860.0,104850.0,0.1393872]
[1762790103347,0.41581314,104860.0,104850.0,0.1393872]
[1762790103547,0.57830057,104860.0,104850.0,0.04618803]
[1762790103949,0.58833057,104860.0,104850.0,0.00219803]
[1762790104249,0.04221,104850.0,104840.0,0.01216344]
[1762790104449,0.57815743,104850.0,104840.0,0.00219803]
[1762790104842,0.57815743,104850.0,104840.0,0.01442378]
[1762790105143,0.57815743,104850.0,104840.0,0.00219803]
[1762790105656,0.05487,104840.0,104830.0,0.00014314]
[1762790105944,0.41567,104840.0,104830.0,0.09775667]
[1762790106453,0.59081743,104840.0,104830.0,0.00234117]
[1762790106652,0.59081743,104840.0,104830.0,0.01492386]
[1762790106846,0.59081743,104840.0,104830.0,0.09775667]
[1762790107153,0.40301,104840.0,104830.0,0.15402904]
[1762790107351,0.3608,104840.0,104830.0,0.15402904]
[1762790107652,0.40301,104840.0,104830.0,0.15402904]
[1762790107845,0.40301,104840.0,104830.0,0.23037359]
[1762790108048,0.04221,104840.0,104830.0,0.23037359]
[1762790108650,0.59081743,104840.0,104830.0,0.09096809]
[1762790109148,0.68622383,104840.0,104830.0,0.00234117]
[1762790109350,0.68622383,104840.0,104830.0,0.00014314]
[1762790109549,0.59081743,104840.0,104830.0,0.00114314]
[1762790109750,0.59081743,104840.0,104830.0,0.00334117]
[1762790110152,0.68622383,104840.0,104830.0,0.00114314]
[1762790110340,0.68622383,104840.0,104830.0,0.00014314]
[1762790110646,0.05472,104820.0,104810.0,0.09553075]
[1762790110841,0.59066743,104820.0,104810.0,0.09772878]
[1762790111041,0.59066743,104820.0,104810.0,0.10989365]
[1762790111555,1.04689193,104820.0,104810.0,9.705e-05]
[1762790111949,0.95146743,104820.0,104810.0,0.09772878]
[1762790112159,0.40301,104820.0,104810.0,0.04928508]
[1762790112447,0.59066743,104820.0,104810.0,0.01783549]
[1762790112848,0.59066743,104820.0,104810.0,0.00309705]
[1762790113054,1.04689203,104820.0,104810.0,0.00529508]
[1762790113250,0.95146743,104820.0,104810.0,0.00529508]
[1762790113455,1.04689203,104820.0,104810.0,0.00529508]
[1762790113651,0.95146743,104820.0,104810.0,0.00529508]
[1762790114042,1.04689203,104820.0,104810.0,0.00309705]
[1762790114246,0.04221,104810.0,104800.0,0.09558594]
[1762790114447,0.67359113,104810.0,104800.0,0.00234117]
[1762790114652,0.40301,104810.0,104800.0,0.09778397]
[1762790114950,0.57815743,104810.0,104800.0,0.09778397]
[1762790115154,0.40301,104810.0,104800.0,0.15479397]
[1762790115348,0.04227906,104810.0,104800.0,0.15479397]
[1762790115554,6.906e-05,104810.0,104800.0,0.51559397]
[1762790115857,0.00106906,104810.0,104800.0,0.15879397]
[1762790116051,0.00106906,104810.0,104800.0,0.51959397]
[1762790116357,0.00106906,104810.0,104800.0,0.75811397]
[1762790116548,1e-08,104810.0,104800.0,0.9332614]
[1762790116748,1e-08,104810.0,104800.0,0.75811397]
[1762790117158,1e-08,104810.0,104800.0,0.51959397]
[1762790117346,1e-08,104810.0,104800.0,0.75811397]
[1762790117553,0.02105001,104810.0,104800.0,0.15879397]
[1762790117745,0.04221001,104810.0,104800.0,0.51959397]
[1762790117950,1e-08,104810.0,104800.0,0.47560397]
[1762790118453,0.40301001,104810.0,104800.0,0.05033117]
[1762790118654,0.57815744,104810.0,104800.0,0.00634117]
[1762790118860,0.57815744,104810.0,104800.0,0.12359397]
[1762790119060,0.57815744,104810.0,104800.0,0.02815117]
[1762790119255,0.40301001,104810.0,104800.0,0.00634117]
[1762790119648,0.57815744,104810.0,104800.0,0.00634117]
[1762790120952,0.40301001,104810.0,104800.0,0.16030397]
[1762790121351,0.04221001,104810.0,104800.0,0.16030397]
[1762790121552,1e-08,104810.0,104800.0,0.11537397]
[1762790123360,0.04369001,104810.0,104800.0,0.16030397]
[1762790123558,1e-08,104810.0,104800.0,0.11537397]
[1762790123958,1e-08,104810.0,104800.0,0.98525669]
[1762790125159,1e-08,104810.0,104800.0,0.57158926]
[1762790125360,1e-08,104810.0,104800.0,0.71469397]
[1762790125555,1e-08,104810.0,104800.0,0.47617397]
[1762790125959,1e-08,104810.0,104800.0,0.8898414]
[1762790126357,0.00014314,104830.0,104820.0,0.1539449]
[1762790126556,0.00014314,104830.0,104820.0,0.51694293]
[1762790126862,0.40449,104850.0,104840.0,0.0954067]
[1762790127062,0.57963743,104850.0,104840.0,0.09760473]
[1762790127362,0.40449,104850.0,104840.0,0.14253473]
[1762790128260,0.57963743,104850.0,104840.0,0.00219803]
[1762790128667,0.58163743,104850.0,104840.0,0.09760473]
[1762790129053,0.58163743,104850.0,104840.0,0.00219803]
[1762790129258,0.58163743,104850.0,104840.0,0.09760473]
[1762790129459,0.58163743,104850.0,104840.0,0.11996473]
[1762790129654,0.40649,104850.0,104840.0,0.15612473]
[1762790129866,0.04569,104850.0,104840.0,0.51692473]
[1762790130066,0.002,104850.0,104840.0,0.51692473]
[1762790130367,0.002,104850.0,104840.0,0.15612473]
[1762790130768,0.40463314,104860.0,104850.0,0.1403276]
[1762790130959,0.04383314,104860.0,104850.0,0.14252563]
[1762790131155,0.37346,104880.0,104870.0,0.0953794]
[1762790131360,0.41715,104880.0,104870.0,0.11993743]
[1762790131754,0.59229743,104880.0,104870.0,0.11993743]
[1762790132164,0.59229743,104880.0,104870.0,0.02455803]
[1762790132362,0.59229743,104880.0,104870.0,0.03627227]
[1762790132762,0.59229743,104880.0,104870.0,0.01391227]
[1762790134070,0.59629743,104880.0,104870.0,0.13265177]
[1762790134256,0.42115,104880.0,104870.0,0.15522177]
[1762790135065,0.42115,104880.0,104870.0,0.03727227]
[1762790135365,0.69166773,104880.0,104870.0,0.01491227]
[1762790135766,0.04369,104870.0,104840.0,0.0954036]
[1762790136065,0.40449,104850.0,104840.0,0.15431613]
[1762790136473,0.67503503,104850.0,104840.0,0.01398253]
[1762790137067,0.67503503,104850.0,104830.0,0.0002108]
[1762790137269,0.59334743,104840.0,104830.0,0.14275463]
[1762790137566,0.40449,104840.0,104830.0,0.14275463]
[1762790138269,0.59334743,104840.0,104830.0,0.00240883]
[1762790138472,0.68875413,104840.0,104830.0,0.00240883]
[1762790138664,0.59334743,104840.0,104830.0,0.09782463]
[1762790138866,0.53772048,104840.0,104830.0,0.09782463]
[1762790139066,0.40449,104850.0,104840.0,0.1539267]
[1762790139264,0.52401048,104850.0,104840.0,0.14253473]
[1762790139660,0.52401048,104850.0,104840.0,0.15400746]
[1762790140168,0.1528067,104840.0,104830.0,0.0002108]
[1762790140368,0.75364766,104840.0,104830.0,0.0002108]
[1762790140561,0.63412718,104840.0,104830.0,0.0002108]
[1762790141564,0.75364766,104840.0,104830.0,0.00240883]
[1762790141959,0.75364766,104840.0,104830.0,0.0002108]
[1762790142384,0.75364766,104840.0,104830.0,8e-07]
[1762790143465,0.75374331,104840.0,104830.0,8e-07]
[1762790144877,0.75374331,104840.0,104830.0,0.0954165]
[1762790145173,0.75374331,104840.0,104830.0,0.00219883]
[1762790145472,0.75374331,104840.0,104830.0,0.09761453]
[1762790145870,0.53881613,104840.0,104830.0,0.14254453]
[1762790146170,0.63422263,104840.0,104830.0,0.09761443]
[1762790146372,0.75374311,104840.0,104830.0,0.09761443]
[1762790146568,0.63422263,104840.0,104830.0,0.09761443]
[1762790146771,0.75374311,104840.0,104830.0,0.09761443]
[1762790147076,0.63422263,104840.0,104830.0,0.09761443]
[1762790147570,0.38386565,104840.0,104830.0,0.14254443]
[1762790147772,0.00109565,104840.0,104830.0,0.50334443]
[1762790148177,0.00014314,104860.0,104850.0,0.1403275]
[1762790148376,0.52401048,104880.0,104870.0,0.1403093]
[1762790148574,0.53772048,104880.0,104870.0,0.00219803]
[1762790148764,0.75261116,104880.0,104870.0,0.00219803]
[1762790149165,0.04309,104860.0,104850.0,0.1399913]
[1762790149368,0.16261048,104860.0,104850.0,0.14218933]
[1762790149668,0.52355362,104870.0,104860.0,0.1399884]
[1762790149870,0.52355362,104870.0,104860.0,0.15577643]
[1762790150072,0.16275362,104870.0,104860.0,0.15577643]
[1762790150266,0.40403314,104870.0,104860.0,0.15577643]
[1762790150473,0.52355362,104870.0,104860.0,0.15577643]
[1762790150974,0.52455362,104870.0,104860.0,0.15577643]
[1762790151670,0.40503314,104870.0,104860.0,0.15577643]
[1762790151882,0.38366314,104870.0,104860.0,0.15577643]
[1762790152276,0.02286314,104870.0,104860.0,0.15577643]
[1762790152474,0.04423314,104870.0,104860.0,0.15577643]
[1762790153476,0.00114314,104870.0,104860.0,0.15577643]
[1762790153677,0.00114314,104870.0,104860.0,0.51657643]
[1762790154079,0.00114314,104870.0,104860.0,0.5845453]
[1762790154275,0.52455362,104870.0,104860.0,0.2237453]
[1762790154479,0.04423314,104870.0,104860.0,0.15577643]
[1762790154682,0.02286314,104870.0,104860.0,0.15577643]
[1762790154866,0.00114314,104870.0,104860.0,0.15577643]
[1762790155071,0.00114314,104870.0,104860.0,0.51657643]
[1762790155272,0.00114314,104870.0,104860.0,0.5845453]
[1762790155478,0.00114314,104870.0,104860.0,0.2237453]
[1762790155680,0.00114314,104870.0,104860.0,0.15577643]
[1762790155871,0.04451314,104870.0,104860.0,0.15577643]
[1762790156067,0.40531314,104870.0,104860.0,0.15577643]
[1762790156273,0.40531314,104870.0,104860.0,0.51657643]
[1762790156274,0.00114314,104870.0,104860.0,0.51657643]
[1762790157274,0.00114314,104870.0,104860.0,0.63609691]
[1762790157476,0.16252048,104880.0,104870.0,0.140684]
[1762790157780,0.62151098,104880.0,104870.0,0.00219803]
[1762790158077,0.043,104890.0,104880.0,0.1537305]
[1762790158276,0.043,104890.0,104880.0,0.15592853]
[1762790158777,0.00014314,104900.0,104890.0,0.1406715]
[1762790159091,0.00014314,104900.0,104890.0,0.50366953]
[1762790160782,0.04314314,104900.0,104890.0,0.50466953]
[1762790161778,0.53706048,104920.0,104910.0,0.1406533]
[1762790161970,0.4038,104930.0,104920.0,0.1406442]
[1762790162177,0.4038,104930.0,104920.0,0.15589223]
[1762790162584,0.4038,104950.0,104940.0,0.1406258]
[1762790162881,0.35735433,104950.0,104940.0,0.27539431]
[1762790163088,0.00014234,104960.0,104950.0,0.1406167]
[1762790163384,0.39589,104980.0,104970.0,0.02321]
[1762790163572,0.53706048,104980.0,104970.0,0.00219803]
[1762790164184,0.63233998,104980.0,104970.0,0.00219803]
[1762790164878,0.4068,104980.0,104970.0,0.14279653]
[1762790165074,0.003,104980.0,104970.0,0.14279653]
[1762790165276,0.58932258,105000.0,104970.0,0.09748653]
[1762790165481,0.4038,104980.0,104970.0,0.04750803]
[1762790165682,0.043,104980.0,104970.0,0.50359653]
[1762790165876,0.043,104980.0,104970.0,0.14279653]
[1762790166179,0.02135,104980.0,104970.0,0.14279653]
[1762790166482,0.4038,104990.0,104980.0,0.1536395]
[1762790166682,0.4038,104990.0,104980.0,0.15583753]
[1762790166893,0.3608,104990.0,104980.0,0.15583753]
[1762790167074,0.3608,104990.0,104980.0,0.35003874]
[1762790167275,0.4038,105000.0,104990.0,0.02321]
[1762790167471,0.4038,105000.0,104990.0,0.04750803]
[1762790167672,0.4038,105000.0,104990.0,0.14277843]
[1762790167972,0.3608,105000.0,104990.0,0.50041891]
[1762790168179,0.043,105010.0,105000.0,0.1536213]
[1762790168378,0.043,105010.0,105000.0,0.15581933]
[1762790168774,0.043,105010.0,105000.0,0.51661933]
[1762790168979,0.38215,105030.0,105020.0,0.02321]
[1762790169177,0.4038,105030.0,105020.0,0.00219803]
[1762790169481,0.05674,105020.0,105010.0,0.00014314]
[1762790169680,0.53706048,105020.0,105010.0,0.09759347]
[1762790169883,0.41754,105020.0,105010.0,0.09759347]
[1762790170381,0.4038,105030.0,105020.0,0.1405533]
[1762790170581,0.4038,105030.0,105020.0,0.15580133]
[1762790170778,0.4038,105030.0,105020.0,0.06055803]
[1762790170982,0.4038,105030.0,105020.0,0.04750803]
[1762790171185,0.4038,105030.0,105020.0,0.02540803]
[1762790171385,0.4038,105030.0,105020.0,0.12065133]
[1762790171687,0.4038,105030.0,105020.0,0.00219803]
[1762790171885,0.52332048,105030.0,105020.0,0.00219803]
[1762790172086,0.4038,105030.0,105020.0,0.00219803]
[1762790172487,0.4038,105030.0,105020.0,0.12065133]
[1762790172785,0.4038,105030.0,105020.0,0.14275133]
[1762790172981,0.4038,105030.0,105020.0,0.00219803]
[1762790173384,0.61855488,105030.0,105020.0,0.00219803]
[1762790174188,0.52532048,105030.0,105020.0,0.00219803]
[1762790174394,0.4058,105030.0,105020.0,0.14275153]
[1762790175482,0.4058,105030.0,105020.0,0.04750803]
[1762790175683,0.62055488,105030.0,105020.0,0.00219803]
[1762790175885,0.52532048,105030.0,105020.0,0.00219803]
[1762790176081,0.4058,105030.0,105020.0,0.14275153]
[1762790177192,0.52532048,105030.0,105020.0,0.09744123]
[1762790177378,0.4058,105030.0,105020.0,0.12065123]
[1762790177577,0.4058,105030.0,105020.0,0.21984901]
[1762790178193,0.002,105030.0,105020.0,0.35241949]
[1762790178391,0.4058,105030.0,105020.0,0.23289901]
[1762790178687,0.4058,105030.0,105020.0,0.13765581]
[1762790178880,0.4058,105030.0,105020.0,0.21984921]
[1762790179080,0.62055478,105030.0,105020.0,0.10250581]
[1762790179282,0.62055478,105030.0,105020.0,0.07929581]
[1762790179686,0.5010343,105030.0,105020.0,0.07929581]
[1762790179911,0.62055448,105030.0,105020.0,0.07929581]
[1762790180493,0.62055448,105030.0,105020.0,0.17453891]
[1762790180702,0.62055448,105030.0,105020.0,0.07929581]
[1762790180991,0.62055448,105030.0,105010.0,0.09538964]
[1762790180992,0.1539734,105020.0,105010.0,0.00014314]
[1762790181293,0.63429388,105020.0,105010.0,0.02567117]
[1762790181789,0.05873,105020.0,105010.0,0.14354367]
[1762790181992,0.40873,105030.0,105020.0,0.1411934]
[1762790182187,0.40873,105030.0,105020.0,0.14339143]
[1762790182691,0.5019643,105030.0,105020.0,0.14339143]
[1762790182894,0.40673,105030.0,105020.0,0.15718143]
[1762790183393,0.5019643,105030.0,105020.0,0.06193803]
[1762790183699,0.62148478,105030.0,105020.0,0.04814803]
[1762790183896,0.40873,105030.0,105020.0,0.14339173]
[1762790185292,0.52825048,105030.0,105020.0,0.14339173]
[1762790185592,0.62348508,105030.0,105020.0,0.02552803]
[1762790185789,0.40873,105030.0,105020.0,0.09744173]
[1762790185988,0.40873,105030.0,105020.0,0.17456988]
[1762790186190,0.40873,105030.0,105020.0,0.22051988]
[1762790186390,0.5039647,105030.0,105020.0,0.22051988]
[1762790186691,0.40873,105030.0,105020.0,0.22051988]
[1762790187089,0.5039647,105030.0,105020.0,0.17456988]
[1762790187297,0.62348518,105030.0,105020.0,0.22051988]
[1762790187800,0.40873,105030.0,105020.0,0.22051988]
[1762790188498,0.40873,105030.0,105020.0,0.12527618]
[1762790188499,0.62348518,105030.0,105020.0,0.12527618]
[1762790188697,0.62348518,105030.0,105010.0,0.09538934]
[1762790188698,0.1539735,105020.0,105010.0,0.00014314]
[1762790188886,0.1539735,105020.0,105010.0,0.00234117]
[1762790188887,0.63429398,105020.0,105010.0,0.00234117]
[1762790189408,0.63429398,105020.0,105010.0,0.09759367]
[1762790189700,0.53905048,105020.0,105010.0,0.09759367]
[1762790190094,0.40773,105020.0,105010.0,0.14354367]
[1762790191103,0.02433,105020.0,105010.0,0.62386415]
[1762790191401,0.54005048,105020.0,105010.0,0.09759347]
[1762790191700,0.53905048,105020.0,105010.0,0.09759347]
[1762790191998,0.54105048,105020.0,105010.0,0.09759347]
[1762790192187,0.63629378,105020.0,105010.0,0.09759347]
[1762790192393,0.5167733,105020.0,105010.0,0.09759347]
[1762790192700,0.41953,105020.0,105010.0,0.09759347]
[1762790192901,0.42053,105020.0,105010.0,0.09759347]
[1762790193301,0.5157733,105020.0,105010.0,0.09759347]
[1762790193500,0.42053,105020.0,105010.0,0.09759347]
[1762790193697,0.63529378,105020.0,105010.0,0.00234117]
[1762790194597,0.63529378,105020.0,105010.0,0.09759347]
[1762790195295,0.5157733,105020.0,105010.0,0.09759347]
[1762790195501,0.63629378,105020.0,105010.0,0.00234117]
[1762790195697,0.63629378,105020.0,105010.0,0.00014314]
[1762790196098,0.1185914,105000.0,104990.0,0.0952674]
[1762790196394,0.61144105,105000.0,104990.0,0.00219803]
[1762790196603,0.97224105,105000.0,104990.0,0.00219803]
[1762790196795,0.97224105,105000.0,104990.0,0.09746853]
[1762790197603,0.99511188,105000.0,104990.0,0.09746853]
[1762790198494,0.99511188,105000.0,104990.0,0.09846853]
[1762790198691,0.78033,105000.0,104990.0,0.14441853]
[1762790198891,0.76753,105000.0,104990.0,0.14441853]
[1762790199100,0.04593,105000.0,104990.0,0.14341853]
[1762790199409,0.04793,105000.0,104990.0,0.14341853]
[1762790200099,0.002,105000.0,104990.0,0.14341853]
[1762790200306,0.002,105000.0,104990.0,0.98501184]
[1762790200507,0.002,105000.0,104990.0,0.74689184]
[1762790200892,0.002,105000.0,104990.0,1.34689184]
[1762790201094,0.02347314,105010.0,105000.0,0.1550014]
[1762790201298,0.04607314,105010.0,105000.0,0.22558888]
[1762790201493,0.00014314,105010.0,105000.0,0.76109332]
[1762790201701,0.38413,105030.0,105020.0,0.1549833]
[1762790202008,0.40673,105030.0,105020.0,0.15718133]
[1762790204199,0.40873,105030.0,105020.0,0.15718133]
[1762790205308,0.04593,105050.0,105040.0,0.04595]
[1762790205601,0.04593,105070.0,105060.0,0.095207]
[1762790205805,0.5019279,105070.0,105060.0,0.09740493]
[1762790206009,0.5019279,105070.0,105060.0,0.12073493]
[1762790206198,0.5019279,105070.0,105060.0,0.09740493]
[1762790206701,0.5019279,105070.0,105060.0,0.00219803]
[1762790207097,0.67663234,105070.0,105060.0,0.00219803]
[1762790207302,0.40973,105070.0,105060.0,0.1545054]
[1762790207498,0.04893,105070.0,105060.0,0.15714493]
[1762790207699,0.003,105070.0,105060.0,0.51794493]
[1762790207899,0.5049279,105070.0,105060.0,0.00219803]
[1762790208305,0.67963234,105070.0,105060.0,0.00219803]
[1762790208506,0.67963234,105070.0,105060.0,0.01355974]
[1762790208708,0.67963234,105070.0,105060.0,0.00219803]
[1762790208900,0.145857,105060.0,105050.0,0.00014314]
[1762790209105,0.506657,105060.0,105050.0,0.00234117]
[1762790209608,0.68136144,105060.0,105050.0,0.00234117]
[1762790209812,0.04558,105040.0,105030.0,0.0952288]
[1762790210113,0.41904,105040.0,105030.0,0.10860818]
[1762790210407,0.77984,105040.0,105030.0,0.10860818]
[1762790210608,0.8750652,105040.0,105030.0,0.10860818]
[1762790210808,0.77984,105040.0,105030.0,0.15227818]
[1762790211399,0.8750653,105040.0,105030.0,0.15227818]
[1762790211605,1.04976974,105040.0,105030.0,0.01337938]
[1762790212000,1.04976974,105040.0,105030.0,0.10861368]
[1762790212403,0.8750652,105040.0,105030.0,0.10861368]
[1762790213407,0.77984,105040.0,105030.0,0.10861368]
[1762790214007,0.875065,105040.0,105030.0,0.10861368]
[1762790214515,0.77984,105040.0,105030.0,0.15362368]
[1762790215510,0.05824,105040.0,105030.0,0.15362368]
[1762790215708,0.04558,105040.0,105030.0,0.15362368]
[1762790216211,0.40638,105040.0,105030.0,0.15362368]
[1762790216608,0.04558,105040.0,105030.0,0.15362368]
[1762790216915,0.40638,105040.0,105030.0,0.15362368]
[1762790218102,0.40638,105040.0,105030.0,0.22201313]
[1762790218315,0.41909,105040.0,105030.0,0.22201313]
[1762790218813,0.41909,105040.0,105030.0,0.15362368]
[1762790219616,0.5143152,105040.0,105030.0,0.15362368]
[1762790220019,0.5143152,105040.0,105030.0,0.05838938]
[1762790220316,0.5143152,105040.0,105030.0,0.15362368]
[1762790220520,0.41909,105040.0,105030.0,0.15362368]
[1762790220713,0.5143152,105040.0,105030.0,0.01337938]
[1762790220917,0.68901964,105040.0,105030.0,0.01118135]
[1762790221112,0.1396343,105030.0,105020.0,0.0002215]
[1762790221317,0.5004343,105030.0,105020.0,0.09766293]
[1762790221513,0.5004343,105030.0,105020.0,0.00241953]
[1762790221717,0.5004343,105030.0,105020.0,0.01370352]
[1762790221920,0.5004343,105030.0,105020.0,0.10894682]
[1762790222820,0.5004343,105030.0,105020.0,0.10994682]
[1762790223016,0.5004341,105030.0,105020.0,0.13277682]
[1762790223219,0.4052,105030.0,105020.0,0.16870682]
[1762790223411,0.0444,105030.0,105020.0,0.23709627]
[1762790224416,0.4052,105030.0,105020.0,0.23709627]
[1762790224723,0.5004341,105030.0,105020.0,0.23709627]
[1762790225109,0.4052,105030.0,105020.0,0.23709627]
[1762790225508,0.0444,105030.0,105020.0,0.59789627]
[1762790225719,0.3608,105040.0,105030.0,0.0952341]
[1762790225922,0.4052,105040.0,105030.0,0.2106782]
[1762790226220,0.04454314,105050.0,105040.0,0.153985]
[1762790226424,0.40534314,105050.0,105040.0,0.12920165]
[1762790226621,0.40534314,105050.0,105040.0,0.21067665]
[1762790227119,0.40534314,105050.0,105040.0,0.22442665]
[1762790227912,0.40534314,105050.0,105040.0,0.16566665]
[1762790228117,0.40534314,105050.0,105040.0,0.18849665]
[1762790228317,0.40534314,105050.0,105040.0,0.22442665]
[1762790228525,0.00014314,105050.0,105040.0,0.69168747]
[1762790228817,0.00014314,105050.0,105040.0,0.77590576]
[1762790229022,0.00114314,105050.0,105040.0,0.77590576]
[1762790229611,0.02289314,105050.0,105040.0,0.24040132]
[1762790229816,0.04554314,105050.0,105040.0,0.24040132]
[1762790230017,0.04554314,105050.0,105040.0,0.60120132]
[1762790230217,0.02289314,105050.0,105040.0,0.60120132]
[1762790230411,0.00114314,105050.0,105040.0,0.60120132]
[1762790230618,0.00114314,105050.0,105040.0,0.77590576]
[1762790230820,0.4052,105070.0,105060.0,0.1539672]
[1762790231018,0.4052,105070.0,105060.0,0.2415495]
[1762790231224,0.4052,105070.0,105060.0,0.31848084]
[1762790231420,0.0444,105070.0,105060.0,0.31848084]
[1762790231625,0.5003891,105080.0,105070.0,0.1402081]
[1762790231927,0.4052,105080.0,105070.0,0.21069636]
[1762790232629,0.4052,105090.0,105080.0,0.1539491]
[1762790232931,0.50038,105090.0,105080.0,0.21065619]
[1762790233225,0.50038,105090.0,105080.0,0.12021713]
[1762790233920,0.50038,105090.0,105080.0,0.14239713]
[1762790234320,0.4052,105090.0,105080.0,0.15614713]
[1762790234522,0.50038,105090.0,105080.0,0.04720803]
[1762790234728,0.50038,105090.0,105080.0,0.00219803]
[1762790234930,0.5003799,105090.0,105080.0,0.12021703]
[1762790235328,0.49936325,105090.0,105080.0,0.12021703]
[1762790235528,0.49936325,105090.0,105080.0,0.02502803]